[Event "Reykjavik Open 2025"]
[Site "Reykjavik, Iceland"]
[Date "2025.04.09"]
[Round "1.1"]
[White "Maghsoodloo, Parham"]
[Black "Tscheuschner, Georg"]
[Result "1-0"]
[ECO "E46"]
[WhiteElo "2684"]
[BlackElo "2168"]
[PlyCount "69"]
[EventDate "2025.??.??"]
[TimeControl "90+30"]
[WhiteClock "0:18:29"]
[BlackClock "0:00:49"]

1. d4 {[%emt 0:00:00]} Nf6 {[%emt 0:00:00]} 2. c4 {[%emt 0:00:00]} e6 {[%emt 0:
00:00]} 3. Nc3 {[%emt 0:00:00]} Bb4 {[%emt 0:00:00]} 4. e3 {[%emt 0:00:00]} O-O
{[%emt 0:00:00]} 5. Nge2 {[%emt 0:00:00]} c6 {[%emt 0:00:00]} 6. a3 {[%emt 0:
00:00]} Ba5 {[%emt 0:00:00]} 7. Bd2 {[%emt 0:00:00]} d5 {[%emt 0:00:00]} 8. Ng3
{[%emt 0:00:00]} Nbd7 {[%emt 0:00:00]} 9. f4 {[%emt 0:00:00]} Bc7 {[%emt 0:00:
00]} 10. Rc1 {[%emt 0:00:00]} dxc4 {[%emt 0:00:00]} 11. Bxc4 {[%emt 0:00:00]}
Nd5 {[%emt 0:00:00]} 12. O-O {[%emt 0:00:00]} f5 {[%emt 0:00:00]} 13. Nh1 {
[%emt 0:00:00]} b5 {[%emt 0:00:00]} 14. Ba2 {[%emt 0:00:00]} Rf6 {[%emt 0:00:
00]} 15. Rf3 {[%emt 0:00:00]} N7b6 {[%emt 0:00:00]} 16. Nf2 {[%emt 0:00:00]}
Nc4 {[%emt 0:00:00]} 17. Nd3 {[%emt 0:00:00]} Bb6 {[%emt 0:00:00]} 18. Ne2 {
[%emt 0:00:00]} Bd7 {[%emt 0:00:00]} 19. Bxc4 {[%emt 0:00:00]} bxc4 {[%emt 0:
00:00]} 20. Rxc4 {[%emt 0:00:00]} c5 {[%emt 0:00:00]} 21. dxc5 {[%emt 0:00:00]}
Bb5 {[%emt 0:00:00]} 22. Rd4 {[%emt 0:00:00]} Bxd3 {[%emt 0:00:00]} 23. Rxd3 {
[%emt 0:00:00]} Bxc5 {[%emt 0:00:00]} 24. Nc3 {[%emt 0:00:00]} Qb6 {[%emt 0:00:
00]} 25. Rxd5 {[%emt 0:00:00]} exd5 {[%emt 0:00:00]} 26. Nxd5 {[%emt 0:00:00]}
Qd6 {[%emt 0:02:43]} 27. Nxf6+ {[%emt 0:00:00]} gxf6 {[%emt 0:03:21]} 28. h3 {
[%emt 0:00:00]} Re8 {[%emt 0:01:56]} 29. Kh2 {[%emt 0:00:00]} Kh8 {[%emt 0:05:
51]} 30. Qc2 {[%emt 0:00:00]} Qd5 {[%emt 0:00:02]} 31. Bc3 {[%emt 0:00:00]} Re6
{[%emt 0:01:23]} 32. Qf2 {[%emt 0:00:00]} Qe4 {[%emt 0:00:25]} 33. Qh4 {
[%emt 0:00:00]} Bxe3 {[%emt 0:01:17]} 34. Rg3 {[%emt 0:00:26]} Bd4 {[%emt 0:00:
43]} 35. Qh6 {[%emt 0:00:05]} 1-0

[Event "Reykjavik Open 2025"]
[Site "Reykjavik, Iceland"]
[Date "2025.04.09"]
[Round "1.2"]
[White "Vroombout, Enrico"]
[Black "Ivic, Velimir"]
[Result "0-1"]
[ECO "B92"]
[WhiteElo "2161"]
[BlackElo "2623"]
[PlyCount "68"]
[EventDate "2025.??.??"]
[TimeControl "90+30"]
[WhiteClock "0:01:45"]
[BlackClock "0:08:23"]

1. e4 {[%emt 0:00:00]} c5 {[%emt 0:00:00]} 2. Nf3 {[%emt 0:00:00]} d6 {[%emt 0:
00:00]} 3. d4 {[%emt 0:00:00]} cxd4 {[%emt 0:00:00]} 4. Nxd4 {[%emt 0:00:00]}
Nf6 {[%emt 0:00:00]} 5. Nc3 {[%emt 0:00:00]} a6 {[%emt 0:00:00]} 6. Be2 {
[%emt 0:00:00]} e5 {[%emt 0:00:00]} 7. Nb3 {[%emt 0:00:00]} Be7 {[%emt 0:00:00]
} 8. O-O {[%emt 0:00:00]} O-O {[%emt 0:00:00]} 9. Be3 {[%emt 0:00:00]} Be6 {
[%emt 0:00:00]} 10. f4 {[%emt 0:00:00]} exf4 {[%emt 0:00:00]} 11. Rxf4 {
[%emt 0:00:00]} Nc6 {[%emt 0:00:00]} 12. Nd5 {[%emt 0:00:00]} Bxd5 {[%emt 0:00:
00]} 13. exd5 {[%emt 0:00:00]} Ne5 {[%emt 0:00:00]} 14. Rb4 {[%emt 0:00:00]}
Qc7 {[%emt 0:00:00]} 15. a4 {[%emt 0:00:00]} Rfe8 {[%emt 0:00:00]} 16. a5 {
[%emt 0:00:00]} Bf8 {[%emt 0:00:00]} 17. Bf2 {[%emt 0:00:00]} g6 {[%emt 0:00:
00]} 18. c3 {[%emt 0:00:00]} Bh6 {[%emt 0:00:00]} 19. Qd4 {[%emt 0:00:00]} Re7
{[%emt 0:00:00]} 20. Bh4 {[%emt 0:00:00]} Ned7 {[%emt 0:00:00]} 21. Qc4 {
[%emt 0:00:00]} Qxc4 {[%emt 0:00:00]} 22. Bxc4 {[%emt 0:00:00]} Re4 {[%emt 0:
00:00]} 23. Bg3 {[%emt 0:00:00]} Rc8 {[%emt 0:00:00]} 24. Nd4 {[%emt 0:01:51]}
Be3+ {[%emt 0:00:00]} 25. Kh1 {[%emt 0:04:32]} Ne5 {[%emt 0:00:00]} 26. Bf1 {
[%emt 0:01:19]} Rc7 {[%emt 0:00:00]} 27. Rb6 {[%emt 0:02:20]} Rd7 {[%emt 0:00:
00]} 28. Re1 {[%emt 0:02:27]} Nxd5 {[%emt 0:01:10]} 29. Rb3 {[%emt 0:00:20]}
Nf6 {[%emt 0:00:50]} 30. Nf3 {[%emt 0:01:32]} Bc5 {[%emt 0:01:08]} 31. Nxe5 {
[%emt 0:01:58]} dxe5 {[%emt 0:04:36]} 32. Be2 {[%emt 0:00:17]} Rd2 {[%emt 0:02:
07]} 33. Bf3 {[%emt 0:00:06]} Rxe1+ {[%emt 0:00:05]} 34. Bxe1 {[%emt 0:00:03]}
Rc2 {[%emt 0:00:11]} 0-1

[Event "Reykjavik Open 2025"]
[Site "Reykjavik, Iceland"]
[Date "2025.04.09"]
[Round "1.3"]
[White "Lu, Shanglei"]
[Black "Birkisson, Bjorn Holm"]
[Result "1-0"]
[ECO "C02"]
[WhiteElo "2618"]
[BlackElo "2154"]
[PlyCount "72"]
[EventDate "2025.??.??"]
[TimeControl "90+30"]
[WhiteClock "0:24:24"]
[BlackClock "0:00:01"]

1. e4 {[%emt 0:00:00]} e6 {[%emt 0:00:00]} 2. d4 {[%emt 0:00:00]} d5 {[%emt 0:
00:00]} 3. e5 {[%emt 0:00:00]} c5 {[%emt 0:00:00]} 4. c3 {[%emt 0:00:00]} Nc6 {
[%emt 0:00:00]} 5. Nf3 {[%emt 0:00:00]} Bd7 {[%emt 0:00:00]} 6. Be2 {[%emt 0:
00:00]} Nge7 {[%emt 0:00:00]} 7. O-O {[%emt 0:00:00]} Ng6 {[%emt 0:00:00]} 8.
g3 {[%emt 0:00:00]} f6 {[%emt 0:00:00]} 9. exf6 {[%emt 0:00:00]} gxf6 {[%emt 0:
00:00]} 10. c4 {[%emt 0:00:00]} dxc4 {[%emt 0:00:00]} 11. Nc3 {[%emt 0:00:00]}
cxd4 {[%emt 0:00:00]} 12. Nxd4 {[%emt 0:00:00]} Bg7 {[%emt 0:00:00]} 13. Ncb5 {
[%emt 0:00:00]} Nxd4 {[%emt 0:00:00]} 14. Nd6+ {[%emt 0:00:00]} Ke7 {[%emt 0:
00:00]} 15. Qxd4 {[%emt 0:00:00]} Qb6 {[%emt 0:00:00]} 16. Qxb6 {[%emt 0:00:00]
} axb6 {[%emt 0:00:00]} 17. Nxc4 {[%emt 0:00:00]} Bb5 {[%emt 0:04:17]} 18. Bd2
{[%emt 0:00:00]} Bxc4 {[%emt 0:01:19]} 19. Bxc4 {[%emt 0:00:00]} Ne5 {[%emt 0:
00:59]} 20. Be2 {[%emt 0:00:00]} f5 {[%emt 0:01:34]} 21. Bc3 {[%emt 0:00:00]}
Kf7 {[%emt 0:00:26]} 22. Rfe1 {[%emt 0:00:00]} Bf6 {[%emt 0:01:54]} 23. Bxe5 {
[%emt 0:00:00]} Bxe5 {[%emt 0:00:05]} 24. Bc4 {[%emt 0:00:00]} Kf6 {[%emt 0:00:
57]} 25. Re2 {[%emt 0:00:00]} Rac8 {[%emt 0:01:37]} 26. Bb3 {[%emt 0:00:00]}
Rhe8 {[%emt 0:00:29]} 27. Rae1 {[%emt 0:00:00]} Rc5 {[%emt 0:00:43]} 28. Kg2 {
[%emt 0:00:00]} f4 {[%emt 0:00:36]} 29. gxf4 {[%emt 0:00:00]} Bd4 {[%emt 0:00:
32]} 30. Rxe6+ {[%emt 0:00:00]} Rxe6 {[%emt 0:00:05]} 31. Rxe6+ {[%emt 0:00:00]
} Kf5 {[%emt 0:00:15]} 32. Rxb6 {[%emt 0:00:00]} Kxf4 {[%emt 0:00:14]} 33. Rxb7
{[%emt 0:00:00]} Rg5+ {[%emt 0:00:22]} 34. Kf1 {[%emt 0:00:00]} Rh5 {[%emt 0:
01:12]} 35. Rb4 {[%emt 0:00:00]} Ke4 {[%emt 0:00:39]} 36. Bc2+ {[%emt 0:00:00]}
Kd5 {[%emt 0:01:14]} 1-0

[Event "Reykjavik Open 2025"]
[Site "Reykjavik, Iceland"]
[Date "2025.04.09"]
[Round "1.4"]
[White "Villiers, Thomas"]
[Black "Safarli, Eltaj"]
[Result "0-1"]
[ECO "C56"]
[WhiteElo "2154"]
[BlackElo "2617"]
[PlyCount "98"]
[EventDate "2025.??.??"]
[TimeControl "90+30"]
[WhiteClock "0:43:31"]
[BlackClock "0:21:11"]

1. e4 {[%emt 0:00:00]} e5 {[%emt 0:00:00]} 2. Nf3 {[%emt 0:00:00]} Nc6 {
[%emt 0:00:00]} 3. Bc4 {[%emt 0:00:00]} Bc5 {[%emt 0:00:00]} 4. c3 {[%emt 0:00:
00]} Nf6 {[%emt 0:00:00]} 5. d4 {[%emt 0:00:00]} exd4 {[%emt 0:00:00]} 6. O-O {
[%emt 0:00:00]} Nxe4 {[%emt 0:00:00]} 7. cxd4 {[%emt 0:00:00]} d5 {[%emt 0:00:
00]} 8. dxc5 {[%emt 0:00:00]} dxc4 {[%emt 0:00:00]} 9. Qe2 {[%emt 0:00:00]} Qe7
{[%emt 0:00:00]} 10. Qxc4 {[%emt 0:00:00]} Bf5 {[%emt 0:00:00]} 11. Re1 {
[%emt 0:00:00]} Qe6 {[%emt 0:00:00]} 12. Qa4 {[%emt 0:00:00]} O-O-O {[%emt 0:
00:00]} 13. Be3 {[%emt 0:00:00]} Qf6 {[%emt 0:00:00]} 14. Na3 {[%emt 0:00:00]}
Rhe8 {[%emt 0:00:00]} 15. b4 {[%emt 0:00:00]} Nc3 {[%emt 0:00:00]} 16. Qb3 {
[%emt 0:00:00]} Ne2+ {[%emt 0:00:00]} 17. Kh1 {[%emt 0:00:00]} Rd3 {[%emt 0:00:
00]} 18. Qc4 {[%emt 0:00:00]} Rxa3 {[%emt 0:00:00]} 19. Qxe2 {[%emt 0:00:00]}
Bg4 {[%emt 0:00:00]} 20. b5 {[%emt 0:00:00]} Bxf3 {[%emt 0:00:00]} 21. Qxf3 {
[%emt 0:00:00]} Qxf3 {[%emt 0:00:00]} 22. gxf3 {[%emt 0:00:00]} Nd8 {[%emt 0:
00:00]} 23. Red1 {[%emt 0:00:00]} c6 {[%emt 0:00:00]} 24. b6 {[%emt 0:00:00]}
Ne6 {[%emt 0:00:00]} 25. Rd2 {[%emt 0:00:00]} Rd8 {[%emt 0:00:00]} 26. Rad1 {
[%emt 0:00:00]} Rxa2 {[%emt 0:00:00]} 27. Rxa2 {[%emt 0:00:00]} Rxd1+ {[%emt 0:
00:00]} 28. Kg2 {[%emt 0:00:00]} a6 {[%emt 0:00:00]} 29. Ra4 {[%emt 0:00:00]}
Rd5 {[%emt 0:00:00]} 30. Rc4 {[%emt 0:00:00]} g5 {[%emt 0:00:00]} 31. h4 {
[%emt 0:00:00]} h6 {[%emt 0:00:00]} 32. hxg5 {[%emt 0:00:00]} hxg5 {[%emt 0:00:
00]} 33. Rc1 {[%emt 0:00:00]} Kd7 {[%emt 0:00:00]} 34. Rh1 {[%emt 0:00:00]}
Nxc5 {[%emt 0:00:00]} 35. Rh8 {[%emt 0:00:00]} Ne6 {[%emt 0:00:00]} 36. Rb8 {
[%emt 0:00:00]} Nd8 {[%emt 0:00:00]} 37. f4 {[%emt 0:00:00]} g4 {[%emt 0:00:00]
} 38. Bc1 {[%emt 0:00:00]} Rb5 {[%emt 0:00:00]} 39. Bd2 {[%emt 0:00:00]} c5 {
[%emt 0:00:00]} 40. Kg3 {[%emt 0:00:00]} Rxb6 {[%emt 0:00:11]} 41. Kxg4 {
[%emt 0:00:00]} Rc6 {[%emt 0:01:09]} 42. Ba5 {[%emt 0:00:00]} Rc8 {[%emt 0:00:
18]} 43. Rxc8 {[%emt 0:00:00]} Kxc8 {[%emt 0:00:02]} 44. Kf5 {[%emt 0:00:00]}
b5 {[%emt 0:00:18]} 45. Kf6 {[%emt 0:00:00]} b4 {[%emt 0:00:31]} 46. f5 {
[%emt 0:00:00]} Nc6 {[%emt 0:01:22]} 47. Kxf7 {[%emt 0:00:00]} Nxa5 {[%emt 0:
00:31]} 48. f6 {[%emt 0:00:00]} Nc6 {[%emt 0:00:12]} 49. Kg7 {[%emt 0:00:00]}
Nd8 {[%emt 0:00:15]} 0-1

[Event "Reykjavik Open 2025"]
[Site "Reykjavik, Iceland"]
[Date "2025.04.09"]
[Round "1.5"]
[White "Ivanchuk, Vasyl"]
[Black "Alrehaili, Ahmed Abdullah S"]
[Result "1-0"]
[ECO "E62"]
[WhiteElo "2604"]
[BlackElo "2152"]
[PlyCount "57"]
[EventDate "2025.??.??"]
[TimeControl "90+30"]
[WhiteClock "0:04:39"]
[BlackClock "0:07:58"]

1. d4 {[%emt 0:00:00]} Nf6 {[%emt 0:00:00]} 2. c4 {[%emt 0:00:00]} g6 {[%emt 0:
00:00]} 3. g3 {[%emt 0:00:00]} Bg7 {[%emt 0:00:00]} 4. Bg2 {[%emt 0:00:00]} d6
{[%emt 0:00:00]} 5. Nc3 {[%emt 0:00:00]} O-O {[%emt 0:00:00]} 6. Nf3 {[%emt 0:
00:00]} Nc6 {[%emt 0:00:00]} 7. O-O {[%emt 0:00:00]} Bg4 {[%emt 0:00:00]} 8. d5
{[%emt 0:00:00]} Na5 {[%emt 0:00:00]} 9. b3 {[%emt 0:00:00]} c5 {[%emt 0:00:00]
} 10. Bb2 {[%emt 0:00:00]} e5 {[%emt 0:00:00]} 11. dxe6 {[%emt 0:00:00]} fxe6 {
[%emt 0:00:00]} 12. Qd2 {[%emt 0:00:00]} Qb6 {[%emt 0:00:00]} 13. Nh4 {[%emt 0:
00:00]} e5 {[%emt 0:00:00]} 14. f4 {[%emt 0:00:00]} Nc6 {[%emt 0:00:00]} 15. h3
{[%emt 0:00:00]} Bc8 {[%emt 0:00:00]} 16. f5 {[%emt 0:00:00]} gxf5 {[%emt 0:00:
00]} 17. Nxf5 {[%emt 0:00:00]} Bxf5 {[%emt 0:00:00]} 18. Rxf5 {[%emt 0:00:00]}
Ne7 {[%emt 0:00:00]} 19. Rff1 {[%emt 0:00:00]} Rad8 {[%emt 0:00:00]} 20. Rad1 {
[%emt 0:00:00]} a6 {[%emt 0:00:00]} 21. Kh2 {[%emt 0:01:55]} Qc7 {[%emt 0:00:
00]} 22. Bc1 {[%emt 0:01:02]} Kh8 {[%emt 0:00:00]} 23. Qd3 {[%emt 0:00:18]} h6
{[%emt 0:00:00]} 24. Be3 {[%emt 0:02:24]} b5 {[%emt 0:01:24]} 25. Qd2 {[%emt 0:
00:36]} Kh7 {[%emt 0:01:44]} 26. Ne4 {[%emt 0:00:55]} Nfg8 {[%emt 0:02:32]} 27.
Rxf8 {[%emt 0:01:41]} Bxf8 {[%emt 0:00:04]} 28. Nxc5 {[%emt 0:01:09]} Qc8 {
[%emt 0:01:48]} 29. Bb7 {[%emt 0:01:21]} 1-0

[Event "Reykjavik Open 2025"]
[Site "Reykjavik, Iceland"]
[Date "2025.04.09"]
[Round "1.6"]
[White "Haertig, Jens"]
[Black "Banusz, Tamas"]
[Result "0-1"]
[ECO "D04"]
[WhiteElo "2149"]
[BlackElo "2592"]
[PlyCount "94"]
[EventDate "2025.??.??"]
[TimeControl "90+30"]
[WhiteClock "0:13:37"]
[BlackClock "0:25:41"]

1. d4 {[%emt 0:00:00]} Nf6 {[%emt 0:00:00]} 2. Nf3 {[%emt 0:00:00]} d5 {
[%emt 0:00:00]} 3. e3 {[%emt 0:00:00]} Bf5 {[%emt 0:00:00]} 4. Bd3 {[%emt 0:00:
00]} Bg6 {[%emt 0:00:00]} 5. O-O {[%emt 0:00:00]} c6 {[%emt 0:00:00]} 6. b3 {
[%emt 0:00:00]} e6 {[%emt 0:00:00]} 7. Bb2 {[%emt 0:00:00]} Nbd7 {[%emt 0:00:
00]} 8. Nbd2 {[%emt 0:00:00]} Be7 {[%emt 0:00:00]} 9. Qe2 {[%emt 0:00:00]} O-O
{[%emt 0:00:00]} 10. Bxg6 {[%emt 0:00:00]} hxg6 {[%emt 0:00:00]} 11. Rfd1 {
[%emt 0:00:00]} a5 {[%emt 0:00:00]} 12. a3 {[%emt 0:00:00]} Qb6 {[%emt 0:00:00]
} 13. e4 {[%emt 0:00:00]} Rfd8 {[%emt 0:00:00]} 14. e5 {[%emt 0:00:00]} Ne8 {
[%emt 0:00:00]} 15. c4 {[%emt 0:00:00]} c5 {[%emt 0:00:00]} 16. Rab1 {[%emt 0:
00:00]} Qa6 {[%emt 0:00:00]} 17. dxc5 {[%emt 0:00:00]} Nxc5 {[%emt 0:00:00]}
18. Nd4 {[%emt 0:00:00]} Nc7 {[%emt 0:00:00]} 19. Kf1 {[%emt 0:00:00]} dxc4 {
[%emt 0:00:00]} 20. Nxc4 {[%emt 0:00:00]} Nd5 {[%emt 0:00:00]} 21. g3 {[%emt 0:
00:00]} Rac8 {[%emt 0:00:00]} 22. Rbc1 {[%emt 0:00:00]} Rd7 {[%emt 0:00:00]}
23. h4 {[%emt 0:00:00]} Rcd8 {[%emt 0:00:00]} 24. Kg1 {[%emt 0:00:00]} Nc7 {
[%emt 0:00:00]} 25. Qf3 {[%emt 0:03:01]} Nb5 {[%emt 0:00:00]} 26. Nc2 {[%emt 0:
04:39]} Rd3 {[%emt 0:00:00]} 27. Qe2 {[%emt 0:01:33]} Nc3 {[%emt 0:00:00]} 28.
Bxc3 {[%emt 0:01:43]} Rxc3 {[%emt 0:00:00]} 29. Rxd8+ {[%emt 0:00:41]} Bxd8 {
[%emt 0:00:00]} 30. Rd1 {[%emt 0:00:03]} Be7 {[%emt 0:00:00]} 31. N2e3 {
[%emt 0:00:36]} Rxb3 {[%emt 0:01:52]} 32. h5 {[%emt 0:00:55]} gxh5 {[%emt 0:02:
16]} 33. Qxh5 {[%emt 0:00:27]} Rd3 {[%emt 0:00:33]} 34. Rc1 {[%emt 0:00:34]} b6
{[%emt 0:02:44]} 35. Kh2 {[%emt 0:01:39]} Rd4 {[%emt 0:02:01]} 36. Nd6 {
[%emt 0:01:19]} Bxd6 {[%emt 0:01:10]} 37. exd6 {[%emt 0:00:02]} Rd2 {[%emt 0:
03:28]} 38. Ng4 {[%emt 0:01:15]} Rd5 {[%emt 0:03:41]} 39. Ne5 {[%emt 0:01:31]}
g6 {[%emt 0:00:17]} 40. Qg5 {[%emt 0:00:44]} Qe2 {[%emt 0:00:59]} 41. d7 {
[%emt 0:00:00]} Qxf2+ {[%emt 0:00:00]} 42. Kh3 {[%emt 0:00:00]} Qf5+ {[%emt 0:
00:00]} 43. Qxf5 {[%emt 0:00:00]} gxf5 {[%emt 0:00:00]} 44. Nc6 {[%emt 0:00:00]
} Rxd7 {[%emt 0:00:00]} 45. Nxa5 {[%emt 0:00:00]} Rd3 {[%emt 0:00:00]} 46. Kh4
{[%emt 0:00:00]} bxa5 {[%emt 0:00:00]} 47. Rxc5 {[%emt 0:00:00]} Rxa3 {[%emt 0:
00:00]} 0-1

[Event "Reykjavik Open 2025"]
[Site "Reykjavik, Iceland"]
[Date "2025.04.09"]
[Round "1.7"]
[White "Muradli, Mahammad"]
[Black "Pattnayak Nilsu"]
[Result "1-0"]
[ECO "E06"]
[WhiteElo "2588"]
[BlackElo "2146"]
[PlyCount "85"]
[EventDate "2025.??.??"]
[TimeControl "90+30"]
[WhiteClock "1:03:41"]
[BlackClock "0:10:32"]

1. d4 {[%emt 0:00:00]} Nf6 {[%emt 0:00:00]} 2. c4 {[%emt 0:00:00]} e6 {[%emt 0:
00:00]} 3. Nf3 {[%emt 0:00:00]} d5 {[%emt 0:00:00]} 4. g3 {[%emt 0:00:00]} Be7
{[%emt 0:00:00]} 5. Bg2 {[%emt 0:00:00]} O-O {[%emt 0:00:00]} 6. Nc3 {[%emt 0:
00:00]} dxc4 {[%emt 0:00:00]} 7. Ne5 {[%emt 0:00:00]} Nc6 {[%emt 0:00:00]} 8.
Bxc6 {[%emt 0:00:00]} bxc6 {[%emt 0:00:00]} 9. Nxc6 {[%emt 0:00:00]} Qd6 {
[%emt 0:00:00]} 10. Nxe7+ {[%emt 0:00:00]} Qxe7 {[%emt 0:00:00]} 11. Qa4 {
[%emt 0:00:00]} c5 {[%emt 0:00:00]} 12. dxc5 {[%emt 0:00:00]} Qxc5 {[%emt 0:00:
00]} 13. Be3 {[%emt 0:00:00]} Qc7 {[%emt 0:00:00]} 14. O-O-O {[%emt 0:00:00]}
Ng4 {[%emt 0:00:00]} 15. Rd4 {[%emt 0:00:00]} Nxe3 {[%emt 0:00:00]} 16. fxe3 {
[%emt 0:00:00]} Rb8 {[%emt 0:00:00]} 17. Rhd1 {[%emt 0:00:00]} Qb6 {[%emt 0:00:
00]} 18. R1d2 {[%emt 0:00:00]} e5 {[%emt 0:00:00]} 19. Nd5 {[%emt 0:00:00]} c3
{[%emt 0:00:00]} 20. Nxb6 {[%emt 0:00:00]} exd4 {[%emt 0:00:00]} 21. Rc2 {
[%emt 0:00:00]} axb6 {[%emt 0:00:00]} 22. exd4 {[%emt 0:00:00]} cxb2+ {[%emt 0:
00:00]} 23. Rxb2 {[%emt 0:00:00]} b5 {[%emt 0:00:00]} 24. Qb3 {[%emt 0:00:00]}
Bf5 {[%emt 0:00:00]} 25. d5 {[%emt 0:00:00]} Rfc8+ {[%emt 0:00:02]} 26. Kd1 {
[%emt 0:00:00]} Rc5 {[%emt 0:02:39]} 27. Qf3 {[%emt 0:00:00]} Rd8 {[%emt 0:00:
17]} 28. Qxf5 {[%emt 0:00:00]} Rcxd5+ {[%emt 0:01:53]} 29. Qxd5 {[%emt 0:00:00]
} Rxd5+ {[%emt 0:00:04]} 30. Rd2 {[%emt 0:00:00]} Rxd2+ {[%emt 0:01:46]} 31.
Kxd2 {[%emt 0:00:00]} Kf8 {[%emt 0:02:22]} 32. Kc3 {[%emt 0:00:00]} Ke7 {
[%emt 0:00:06]} 33. Kb4 {[%emt 0:00:00]} Kd6 {[%emt 0:00:15]} 34. Kxb5 {
[%emt 0:00:00]} Kc7 {[%emt 0:00:05]} 35. Kc5 {[%emt 0:00:00]} h5 {[%emt 0:00:
09]} 36. e4 {[%emt 0:00:00]} g5 {[%emt 0:00:51]} 37. Kd5 {[%emt 0:00:00]} h4 {
[%emt 0:00:26]} 38. Ke5 {[%emt 0:00:00]} hxg3 {[%emt 0:00:13]} 39. hxg3 {
[%emt 0:00:00]} Kd7 {[%emt 0:00:11]} 40. Kf6 {[%emt 0:00:00]} Kd6 {[%emt 0:00:
07]} 41. e5+ {[%emt 0:00:00]} Kd5 {[%emt 0:00:07]} 42. a4 {[%emt 0:00:00]} g4 {
[%emt 0:00:25]} 43. a5 {[%emt 0:00:00]} 1-0

[Event "Reykjavik Open 2025"]
[Site "Reykjavik, Iceland"]
[Date "2025.04.09"]
[Round "1.8"]
[White "Ptacnikova, Lenka"]
[Black "Gupta, Abhijeet"]
[Result "0-1"]
[ECO "E60"]
[WhiteElo "2142"]
[BlackElo "2576"]
[PlyCount "60"]
[EventDate "2025.??.??"]
[TimeControl "90+30"]
[WhiteClock "0:12:07"]
[BlackClock "0:44:15"]

1. Nf3 {[%emt 0:00:00]} Nf6 {[%emt 0:00:00]} 2. c4 {[%emt 0:00:00]} g6 {
[%emt 0:00:00]} 3. d4 {[%emt 0:00:00]} Bg7 {[%emt 0:00:00]} 4. g3 {[%emt 0:00:
00]} d5 {[%emt 0:00:00]} 5. cxd5 {[%emt 0:00:00]} Nxd5 {[%emt 0:00:00]} 6. e4 {
[%emt 0:00:00]} Nb6 {[%emt 0:00:00]} 7. h3 {[%emt 0:00:00]} O-O {[%emt 0:00:00]
} 8. Nc3 {[%emt 0:00:00]} c5 {[%emt 0:00:00]} 9. Be3 {[%emt 0:00:00]} cxd4 {
[%emt 0:00:00]} 10. Nxd4 {[%emt 0:00:00]} Bd7 {[%emt 0:00:00]} 11. Qc2 {
[%emt 0:00:00]} Na6 {[%emt 0:00:00]} 12. Rd1 {[%emt 0:00:00]} Rc8 {[%emt 0:00:
00]} 13. Ndb5 {[%emt 0:00:00]} Qe8 {[%emt 0:00:00]} 14. Qb1 {[%emt 0:00:00]}
Nc4 {[%emt 0:00:00]} 15. Bxc4 {[%emt 0:00:00]} Rxc4 {[%emt 0:00:00]} 16. Nxa7 {
[%emt 0:00:00]} Nc5 {[%emt 0:00:00]} 17. Nd5 {[%emt 0:00:00]} Rxe4 {[%emt 0:00:
00]} 18. O-O {[%emt 0:00:00]} Rxe3 {[%emt 0:00:00]} 19. Nxe3 {[%emt 0:00:00]}
Bxh3 {[%emt 0:00:00]} 20. Qc2 {[%emt 0:00:00]} Ne6 {[%emt 0:00:00]} 21. Qc4 {
[%emt 0:00:00]} Bxf1 {[%emt 0:00:00]} 22. Kxf1 {[%emt 0:00:00]} Bxb2 {[%emt 0:
00:00]} 23. Qb4 {[%emt 0:00:00]} Bf6 {[%emt 0:00:00]} 24. Qxb7 {[%emt 0:00:00]}
Qa8 {[%emt 0:00:00]} 25. Qxa8 {[%emt 0:00:00]} Rxa8 {[%emt 0:00:00]} 26. Rd7 {
[%emt 0:01:56]} Bd4 {[%emt 0:00:00]} 27. Nc6 {[%emt 0:00:12]} Bxe3 {[%emt 0:00:
00]} 28. fxe3 {[%emt 0:00:18]} Rxa2 {[%emt 0:00:00]} 29. Nxe7+ {[%emt 0:00:49]}
Kg7 {[%emt 0:00:00]} 30. Nc6 {[%emt 0:01:08]} Ng5 {[%emt 0:00:00]} 0-1

[Event "Reykjavik Open 2025"]
[Site "Reykjavik, Iceland"]
[Date "2025.04.09"]
[Round "1.9"]
[White "Jacobson, Brandon"]
[Black "Aeschbacher, Dimitri"]
[Result "1-0"]
[ECO "A17"]
[WhiteElo "2570"]
[BlackElo "2142"]
[PlyCount "69"]
[EventDate "2025.??.??"]
[TimeControl "90+30"]
[WhiteClock "0:17:31"]
[BlackClock "0:12:56"]

1. Nf3 {[%emt 0:00:00]} Nf6 {[%emt 0:00:00]} 2. c4 {[%emt 0:00:00]} e6 {
[%emt 0:00:00]} 3. Nc3 {[%emt 0:00:00]} Bb4 {[%emt 0:00:00]} 4. Qc2 {[%emt 0:
00:00]} O-O {[%emt 0:00:00]} 5. e4 {[%emt 0:00:00]} d6 {[%emt 0:00:00]} 6. a3 {
[%emt 0:00:00]} Ba5 {[%emt 0:00:00]} 7. b4 {[%emt 0:00:00]} Bb6 {[%emt 0:00:00]
} 8. e5 {[%emt 0:00:00]} Ng4 {[%emt 0:00:00]} 9. d4 {[%emt 0:00:00]} a5 {
[%emt 0:00:00]} 10. c5 {[%emt 0:00:00]} axb4 {[%emt 0:00:00]} 11. cxb6 {
[%emt 0:00:00]} bxc3 {[%emt 0:00:00]} 12. h3 {[%emt 0:00:00]} Nh6 {[%emt 0:00:
00]} 13. Bg5 {[%emt 0:00:00]} Qd7 {[%emt 0:00:00]} 14. Qxc3 {[%emt 0:00:00]}
cxb6 {[%emt 0:00:00]} 15. Bxh6 {[%emt 0:00:00]} gxh6 {[%emt 0:00:00]} 16. Qe3 {
[%emt 0:00:00]} Nc6 {[%emt 0:00:00]} 17. Bd3 {[%emt 0:00:00]} Nb4 {[%emt 0:00:
00]} 18. Be4 {[%emt 0:00:00]} f5 {[%emt 0:00:00]} 19. exf6 {[%emt 0:00:00]}
Rxf6 {[%emt 0:00:00]} 20. Nh2 {[%emt 0:00:00]} h5 {[%emt 0:00:00]} 21. O-O {
[%emt 0:00:00]} d5 {[%emt 0:00:00]} 22. Bxh7+ {[%emt 0:00:00]} Qxh7 {[%emt 0:
00:00]} 23. axb4 {[%emt 0:00:00]} Rxa1 {[%emt 0:00:00]} 24. Rxa1 {[%emt 0:00:
00]} Bd7 {[%emt 0:00:00]} 25. Nf3 {[%emt 0:00:00]} Rf8 {[%emt 0:00:00]} 26.
Qg5+ {[%emt 0:00:00]} Qg7 {[%emt 0:00:00]} 27. Qxh5 {[%emt 0:00:00]} Be8 {
[%emt 0:00:00]} 28. Qe5 {[%emt 0:00:00]} Qg6 {[%emt 0:00:00]} 29. Ra3 {[%emt 0:
00:00]} Rf5 {[%emt 0:02:05]} 30. Qb8 {[%emt 0:00:00]} Qh6 {[%emt 0:01:28]} 31.
Qxe8+ {[%emt 0:00:26]} Rf8 {[%emt 0:00:07]} 32. Qa4 {[%emt 0:00:11]} Qc1+ {
[%emt 0:01:04]} 33. Kh2 {[%emt 0:00:05]} Qf4+ {[%emt 0:00:42]} 34. g3 {[%emt 0:
00:20]} Qe4 {[%emt 0:00:08]} 35. Re3 {[%emt 0:00:27]} 1-0